fUST/lending_fUST_20250527
["ID","MTS","AMOUNT","RATE_DAILY","PERIOD"]
[362477356,1748330998077,-430.0,0.00020273,2]
[362477357,1748330998116,-430.0,0.00020273,2]
[362477358,1748330998155,-430.0,0.00020273,2]
[362477359,1748330998194,-1896.56,0.00020273,2]
[362477360,1748330998229,-430.0,0.00020273,2]
[362477361,1748330998268,-430.0,0.00020273,2]
[362477362,1748330998310,-389.60399174,0.00020273,2]
[362477363,1748330998353,-430.0,0.00020273,2]
[362477364,1748330998397,-195.33850033,0.00020273,2]
[362477365,1748330998441,-793.0,0.00020273,2]
[362477366,1748330998486,-430.0,0.00020273,2]
[362477367,1748330998526,-1419.32,0.00020273,2]
[362477368,1748330998567,-1132.35,0.00020273,2]
[362477369,1748330998603,-430.0,0.00020273,2]
[362477370,1748330998643,-430.0,0.00020273,2]
[362477371,1748330998684,-430.0,0.00020273,2]
[362477372,1748330998725,-430.0,0.00020273,2]
[362477373,1748330998763,-430.0,0.00020273,2]
[362477374,1748330998802,-430.0,0.00020273,2]
[362477375,1748330998840,-430.0,0.00020273,2]
[362477376,1748330998883,-593.45,0.00020273,2]
[362477377,1748330998919,-587.3,0.00020273,2]
[362477378,1748330998956,-430.0,0.00020273,2]
[362477379,1748330998993,-430.0,0.00020273,2]
[362477380,1748330999034,-589.37,0.00020273,2]
[362477381,1748330999073,-430.0,0.00020273,2]
[362477382,1748330999113,-430.0,0.00020273,2]
[362477383,1748330999151,-496.10316095,0.00020273,2]
[362477384,1748330999193,-2337.04,0.00020273,2]
[362477385,1748330999235,-924.09,0.00020273,2]
[362477386,1748330999273,-430.0,0.00020273,2]
[362477387,1748330999398,-1597.61,0.00020273,2]
[362477388,1748330999438,-430.0,0.00020273,2]
[362477389,1748330999478,-430.0,0.00020273,2]
[362477390,1748330999517,-430.0,0.00020273,2]
[362477391,1748330999553,-430.0,0.00020273,2]
[362477392,1748330999593,-430.0,0.00020273,2]
[362477393,1748330999631,-430.0,0.00020273,2]
[362477394,1748330999669,-430.0,0.00020273,2]
[362477395,1748330999708,-451.68,0.00020273,2]
[362477396,1748330999751,-1000.49,0.00020273,2]
[362477397,1748330999789,-151.0,0.00020273,2]
[362477398,1748330999828,-607.67,0.00020273,2]
[362477399,1748330999871,-430.0,0.00020273,2]
[362477400,1748330999913,-430.0,0.00020273,2]
[362477401,1748330999957,-2112.66,0.00020273,2]
[362477402,1748331000002,-2759.1,0.00020273,2]
[362477403,1748331000044,-430.0,0.00020273,2]
[362477404,1748331000088,-430.0,0.00020273,2]
[362477405,1748331000130,-430.0,0.00020273,2]
[362477406,1748331000173,-163.44205103,0.00020273,2]
[362477407,1748331000216,-430.0,0.00020273,2]
[362477408,1748331000260,-430.0,0.00020273,2]
[362477409,1748331000301,-430.0,0.00020273,2]
[362477410,1748331000345,-526.96,0.00020273,2]
[362477411,1748331000386,-430.0,0.00020273,2]
[362477412,1748331000431,-430.0,0.00020273,2]
[362477413,1748331000473,-337.35910415,0.00020273,2]
[362477414,1748331000515,-430.0,0.00020273,2]
[362477415,1748331000557,-430.0,0.00020273,2]
[362477416,1748331000600,-378.90531776,0.00020273,2]
[362477417,1748331000642,-430.0,0.00020273,2]
[362477418,1748331000683,-430.0,0.00020273,2]
[362477419,1748331000727,-698.55,0.00020273,2]
[362477420,1748331000768,-430.0,0.00020273,2]
[362477421,1748331000809,-790.35,0.00020273,2]
[362477422,1748331000852,-561.02,0.00020273,2]
[362477423,1748331000895,-430.0,0.00020273,2]
[362477424,1748331000933,-430.0,0.00020273,2]
[362477425,1748331000971,-430.0,0.00020273,2]
[362477426,1748331001014,-644.94,0.00020273,2]
[362477427,1748331001054,-482.94,0.00020273,2]
[362477428,1748331001094,-151.0,0.00020273,2]
[362477429,1748331001133,-745.06,0.00020273,2]
[362477430,1748331001174,-166.0,0.00020274,2]
[362477431,1748331001215,-167.95035286,0.00020297,2]
[362477432,1748331001257,-1000.0,0.00020297,2]
[362477433,1748331001296,-1000.0,0.00020297,2]
[362477434,1748331001335,-1000.0,0.00020297,2]
[362477435,1748331001372,-1000.0,0.00020297,2]
[362477436,1748331001412,-500.0,0.00020297,2]
[362477437,1748331001450,-1000.0,0.00020297,2]
[362477438,1748331001490,-194.37661371,0.00020297,2]
[362477439,1748331001528,-1010.2538317,0.00020297,2]
[362477440,1748331001567,-151.0,0.000203,4]
[362477441,1748331001607,-407.566118,0.00020317,2]
[362477442,1748331001647,-407.566118,0.00020317,2]
[362477443,1748331001684,-14451.25280392,0.00020363,2]
[362477444,1748331003131,-490.0,0.00016537,2]
[362477445,1748331003812,-158.44,0.00016537,2]
[362477446,1748331006630,-33.7308786,0.00016537,2]
[362477462,1748331032463,-165.0993129,0.00018873,2]
[362477463,1748331032474,-207.4,0.00018881,2]
[362477464,1748331032484,-300.0,0.00019177,2]
[362477465,1748331032494,-300.0,0.00019177,2]
[362477466,1748331032504,-300.0,0.00019177,2]
[362477467,1748331032514,-300.0,0.00019177,2]
[362477468,1748331032524,-1200.0,0.00019177,2]
[362477469,1748331032534,-151.0,0.00019178,2]
[362477470,1748331032544,-151.0,0.00019178,2]
[362477472,1748331032554,-517.65,0.00019178,2]
[362477474,1748331032564,-430.0,0.00019178,2]
[362477476,1748331032574,-151.0,0.00019178,2]
[362477478,1748331032584,-151.0,0.00019178,2]
[362477480,1748331032594,-301.76805248,0.00019178,2]
[362477481,1748331032604,-430.0,0.00019178,2]
[362477483,1748331032614,-430.0,0.00019178,2]
[362477484,1748331032624,-586.66,0.00019178,2]
[362477485,1748331032634,-430.0,0.00019178,2]
[362477486,1748331032643,-430.0,0.00019178,2]
[362477487,1748331032653,-1501.45,0.00019178,2]
[362477488,1748331032663,-430.0,0.00019178,2]
[362477489,1748331032672,-430.0,0.00019178,2]
[362477490,1748331032682,-294.29869052,0.00019178,2]
[362477491,1748331032694,-135.70130948,0.00019178,2]
[362477492,1748331032704,-402.65869052,0.00019178,2]
[362477493,1748331032716,-27.34130948,0.00019178,2]
[362477494,1748331032726,-151.0,0.00019452,2]
[362477495,1748331032736,-151.0,0.00019452,2]
[362477496,1748331032746,-517.65,0.00019452,2]
[362477497,1748331032756,-454.74116748,0.00019452,2]
[362477498,1748331032766,-151.0,0.00019452,2]
[362477499,1748331032776,-151.0,0.00019452,2]
[362477500,1748331032786,-430.0,0.00019452,2]
[362477501,1748331032795,-430.0,0.00019452,2]
[362477502,1748331032805,-586.66,0.00019452,2]
[362477503,1748331032815,-464.54942022,0.00019452,2]
[362477504,1748331032824,-437.06822049,0.00019452,2]
[362477505,1748331032833,-1501.45,0.00019452,2]
[362477506,1748331032843,-460.0,0.00019452,2]
[362477507,1748331032852,-430.0,0.00019452,2]
[362477508,1748331032861,-430.0,0.00019452,2]
[362477509,1748331032871,-587.05348813,0.00019726,2]
[362477510,1748331032881,-151.0,0.00019726,2]
[362477511,1748331032895,-517.65,0.00019726,2]
[362477512,1748331032905,-211.132236,0.00019726,2]
[362477513,1748331032914,-430.0,0.00019726,2]
[362477514,1748331032924,-430.0,0.00019726,2]
[362477515,1748331032934,-586.66,0.00019726,2]
[362477516,1748331032944,-1501.45,0.00019726,2]
[362477517,1748331032954,-430.0,0.00019726,2]
[362477518,1748331032964,-430.0,0.00019726,2]
[362477519,1748331032974,-993.4162273,0.000199,2]
[362477520,1748331032984,-423.16111059,0.00019946,2]
[362477521,1748331032993,-12656.54583329,0.00019946,2]
[362477522,1748331033005,-151.0,0.00019983,2]
[362477523,1748331033015,-430.0,0.0002,2]
[362477524,1748331033026,-172.61386,0.0002,2]
[362477525,1748331033036,-517.65,0.0002,2]
[362477526,1748331033047,-430.0,0.0002,2]
[362477527,1748331033058,-430.0,0.0002,2]
[362477528,1748331033068,-586.66,0.0002,2]
[362477529,1748331033079,-1501.45,0.0002,2]
[362477530,1748331033088,-430.0,0.0002,2]
[362477531,1748331033099,-430.0,0.0002,2]
[362477532,1748331033110,-215.0738,0.0002025,2]
[362477533,1748331033121,-430.0,0.00020273,2]
[362477534,1748331033132,-517.65,0.00020273,2]
[362477535,1748331033142,-430.0,0.00020273,2]
[362477536,1748331033152,-430.0,0.00020273,2]
[362477537,1748331033161,-586.66,0.00020273,2]
[362477538,1748331033171,-1501.45,0.00020273,2]
[362477539,1748331033181,-430.0,0.00020273,2]
[362477540,1748331033191,-530.0,0.00020273,2]
[362477541,1748331033201,-76180.79020089,0.00020363,2]
[362477542,1748331033212,-151.0,0.00020363,2]
[362477543,1748331033222,-65434.51863614,0.00020545,2]
[362477544,1748331033232,-151.0,0.00020545,2]
[362477545,1748331033242,-430.0,0.00020547,2]
[362477546,1748331033252,-500.0,0.00020547,2]
[362477547,1748331033262,-442.67680293,0.00020547,2]
[362477548,1748331033272,-430.0,0.00020547,2]
[362477549,1748331033282,-430.0,0.00020547,2]
[362477550,1748331033292,-181.85650223,0.00020547,2]
[362477551,1748331033302,-357.24,0.00020547,2]
[362477552,1748331033313,-430.0,0.00020547,2]
[362477553,1748331033323,-430.0,0.00020547,2]
[362477554,1748331033333,-430.0,0.00020547,2]
[362477555,1748331033343,-230.71493179,0.00020547,2]
[362477556,1748331033353,-221.7695711,0.00020547,2]
[362477557,1748331033363,-475.69,0.00020547,2]
[362477558,1748331033374,-430.0,0.00020547,2]
[362477559,1748331033469,-529.97915522,0.00020547,2]
[362477560,1748331033480,-592.3,0.00020547,2]
[362477561,1748331033489,-430.0,0.00020547,2]
[362477562,1748331033499,-430.0,0.00020547,2]
[362477563,1748331033509,-474.05980753,0.00020547,2]
[362477564,1748331033518,-430.0,0.00020547,2]
[362477565,1748331033528,-430.0,0.00020547,2]
[362477566,1748331033538,-430.0,0.00020547,2]
[362477567,1748331033548,-156.46840548,0.00020547,2]
[362477568,1748331033558,-552.52,0.00020547,2]
[362477569,1748331033567,-430.0,0.00020547,2]
[362477570,1748331033577,-430.0,0.00020547,2]
[362477571,1748331033586,-242.45576669,0.00020547,2]
[362477572,1748331033596,-430.0,0.00020547,2]
[362477573,1748331033605,-430.0,0.00020547,2]
[362477574,1748331033615,-483.75,0.00020547,2]
[362477575,1748331033624,-515.63,0.00020547,2]
[362477576,1748331033634,-430.0,0.00020547,2]
[362477577,1748331033643,-430.0,0.00020547,2]
[362477578,1748331033653,-430.0,0.00020547,2]
[362477579,1748331033662,-546.70897784,0.00020547,2]
[362477580,1748331033672,-979.21,0.00020547,2]
[362477581,1748331033681,-483.81,0.00020547,2]
[362477582,1748331033691,-510.58,0.00020547,2]
[362477583,1748331033702,-160.03585218,0.00020547,2]
[362477600,1748331039098,-543.73900073,0.00019178,2]
[362477601,1748331039114,-447.66099927,0.00019178,2]
[362477602,1748331039124,-734.41,0.00019178,2]
[362477603,1748331039133,-430.0,0.00019452,2]
[362477604,1748331039143,-991.4,0.00019452,2]
[362477605,1748331039152,-150.84,0.0001963,2]
[362477606,1748331039162,-430.0,0.00019726,2]
[362477607,1748331039172,-991.4,0.00019726,2]
[362477608,1748331039181,-33.65735867,0.0002,2]
[362477615,1748331040629,-734.41,0.00019452,2]
[362477616,1748331040639,-734.41,0.00019726,2]
[362477617,1748331040649,-396.34264133,0.0002,2]
[362477618,1748331040659,-991.4,0.0002,2]
[362477619,1748331040668,-734.41,0.0002,2]
[362477620,1748331040678,-222.25912,0.00020273,2]
[362477632,1748331043417,-430.0,0.00019178,2]
[362477633,1748331043427,-260.62736126,0.00019178,2]
[362477637,1748331046440,-169.37263874,0.00019178,2]
[362477638,1748331046450,-267.35736126,0.00019178,2]
[362477639,1748331046462,-162.64263874,0.00019178,2]
[362477640,1748331046471,-94.39623451,0.00019452,2]
[362477641,1748331046483,-335.60376549,0.00019452,2]
[362477642,1748331046493,-430.0,0.00019452,2]
[362477643,1748331046502,-430.0,0.00019452,2]
[362477644,1748331046513,-430.0,0.00019726,2]
[362477645,1748331046523,-430.0,0.00019726,2]
[362477646,1748331046533,-430.0,0.00019726,2]
[362477647,1748331046542,-430.0,0.0002,2]
[362477648,1748331046552,-430.0,0.0002,2]
[362477649,1748331046562,-430.0,0.0002,2]
[362477650,1748331046572,-514.877328,0.00020136,3]
[362477652,1748331046694,-207.74088,0.00020273,2]
[362477653,1748331046709,-991.4,0.00020273,2]
[362477654,1748331046720,-734.41,0.00020273,2]
[362477655,1748331046730,-430.0,0.00020273,2]
[362477656,1748331046741,-430.0,0.00020273,2]
[362477657,1748331046751,-430.0,0.00020273,2]
[362477658,1748331046760,-300.0,0.00020546,2]
[362477659,1748331046771,-430.0,0.00020547,2]
[362477660,1748331046781,-430.0,0.00020547,2]
[362477661,1748331046791,-430.0,0.00020547,2]
[362477662,1748331046801,-475.52,0.00020547,2]
[362477663,1748331046810,-530.0,0.00020547,2]
[362477664,1748331046820,-430.0,0.00020547,2]
[362477665,1748331046829,-430.0,0.00020547,2]
[362477666,1748331046838,-430.0,0.00020547,2]
[362477667,1748331046848,-430.0,0.00020547,2]
[362477668,1748331046857,-793.0,0.00020547,2]
[362477669,1748331046866,-430.0,0.00020547,2]
[362477670,1748331046876,-1419.32,0.00020547,2]
[362477671,1748331046885,-1132.35,0.00020547,2]
[362477672,1748331046897,-430.0,0.00020547,2]
[362477673,1748331046907,-107.24873258,0.00020547,2]
[362477674,1748331046945,-322.75126742,0.00020547,2]
[362477675,1748331046955,-430.0,0.00020547,2]
[362477676,1748331046964,-430.0,0.00020547,2]
[362477677,1748331046975,-430.0,0.00020547,2]
[362477678,1748331046985,-430.0,0.00020547,2]
[362477679,1748331046994,-593.45,0.00020547,2]
[362477680,1748331047004,-430.0,0.00020547,2]
[362477681,1748331047015,-430.0,0.00020547,2]
[362477682,1748331047024,-589.37,0.00020547,2]
[362477683,1748331047033,-430.0,0.00020547,2]
[362477684,1748331047043,-559.60182779,0.00020547,2]
[362477685,1748331047052,-2337.04,0.00020547,2]
[362477686,1748331047062,-924.09,0.00020547,2]
[362477687,1748331047071,-430.0,0.00020547,2]
[362477688,1748331047082,-1597.61,0.00020547,2]
[362477689,1748331047091,-430.0,0.00020547,2]
[362477690,1748331047101,-430.0,0.00020547,2]
[362477691,1748331047111,-430.0,0.00020547,2]
[362477692,1748331047120,-430.0,0.00020547,2]
[362477693,1748331047130,-441.56855625,0.00020547,2]
[362477694,1748331047139,-430.0,0.00020547,2]
[362477695,1748331047148,-451.68,0.00020547,2]
[362477696,1748331047157,-1000.49,0.00020547,2]
[362477697,1748331047167,-151.0,0.00020547,2]
[362477698,1748331047176,-607.67,0.00020547,2]
[362477699,1748331047185,-430.0,0.00020547,2]
[362477700,1748331047195,-430.0,0.00020547,2]
[362477701,1748331047204,-2112.66,0.00020547,2]
[362477702,1748331047214,-2759.1,0.00020547,2]
[362477703,1748331047223,-430.0,0.00020547,2]
[362477704,1748331047233,-430.0,0.00020547,2]
[362477705,1748331047242,-235.41,0.00020547,2]
[362477706,1748331047251,-430.0,0.00020547,2]
[362477707,1748331047261,-430.0,0.00020547,2]
[362477708,1748331047272,-217.94429613,0.00020547,2]
[362477709,1748331047281,-526.96,0.00020547,2]
[362477710,1748331047291,-217.37314598,0.00020547,2]
[362477711,1748331047300,-430.0,0.00020547,2]
[362477712,1748331047309,-430.0,0.00020547,2]
[362477713,1748331047319,-430.0,0.00020547,2]
[362477714,1748331047328,-442.26922222,0.00020547,2]
[362477715,1748331047338,-442.91473207,0.00020547,2]
[362477716,1748331047347,-698.55,0.00020547,2]
[362477717,1748331047356,-430.0,0.00020547,2]
[362477718,1748331047366,-790.35,0.00020547,2]
[362477719,1748331047376,-561.02,0.00020547,2]
[362477720,1748331047385,-430.0,0.00020547,2]
[362477721,1748331047395,-483.50776994,0.00020547,2]
[362477722,1748331047405,-432.11468585,0.00020547,2]
[362477723,1748331047414,-644.94,0.00020547,2]
[362477724,1748331047424,-482.94,0.00020547,2]
[362477725,1748331047434,-151.0,0.00020547,2]
[362477726,1748331047442,-745.06,0.00020547,2]
[362477727,1748331047452,-430.0,0.00020547,2]
[362477728,1748331047461,-517.65,0.00020547,2]
[362477729,1748331047470,-430.0,0.00020547,2]
[362477730,1748331047480,-430.0,0.00020547,2]
[362477731,1748331047489,-586.66,0.00020547,2]
[362477732,1748331047499,-1501.45,0.00020547,2]
[362477733,1748331047508,-430.0,0.00020547,2]
[362477734,1748331047519,-430.0,0.00020547,2]
[362477735,1748331047528,-991.4,0.00020547,2]
[362477736,1748331047537,-734.41,0.00020547,2]
[362477737,1748331047547,-430.0,0.00020547,2]
[362477738,1748331047556,-430.0,0.00020547,2]
[362477739,1748331047565,-430.0,0.00020547,2]
[362477740,1748331047574,-301.67,0.00020564,2]
[362477741,1748331047583,-500.0,0.00020587,2]
[362477742,1748331047593,-500.0,0.00020587,2]
[362477743,1748331047602,-993.41622728,0.00020614,2]
[362477744,1748331047611,-430.0,0.00020821,2]
[362477745,1748331047620,-485.37,0.00020821,2]
[362477746,1748331047630,-430.0,0.00020821,2]
[362477747,1748331047639,-430.0,0.00020821,2]
[362477748,1748331047649,-430.0,0.00020821,2]
[362477749,1748331047659,-430.0,0.00020821,2]
[362477750,1748331047668,-475.69,0.00020821,2]
[362477751,1748331047677,-430.0,0.00020821,2]
[362477752,1748331047686,-592.3,0.00020821,2]
[362477753,1748331047695,-430.0,0.00020821,2]
[362477754,1748331047705,-430.0,0.00020821,2]
[362477755,1748331047714,-440.44128043,0.00020821,2]
[362477756,1748331047724,-430.0,0.00020821,2]
[362477757,1748331047733,-430.0,0.00020821,2]
[362477758,1748331047742,-552.52,0.00020821,2]
[362477759,1748331047751,-409.82,0.00020821,2]
[362477760,1748331047761,-430.0,0.00020821,2]
[362477761,1748331047771,-430.0,0.00020821,2]
[362477762,1748331047781,-430.0,0.00020821,2]
[362477763,1748331047791,-483.75,0.00020821,2]
[362477764,1748331047801,-515.63,0.00020821,2]
[362477765,1748331047811,-157.58,0.00020821,2]
[362477766,1748331047820,-430.0,0.00020821,2]
[362477767,1748331047830,-430.0,0.00020821,2]
[362477768,1748331047839,-430.0,0.00020821,2]
[362477769,1748331047849,-430.0,0.00020821,2]
[362477770,1748331047858,-430.0,0.00020821,2]
[362477771,1748331047868,-475.52,0.00020821,2]
[362477772,1748331047878,-430.0,0.00020821,2]
[362477773,1748331047887,-430.0,0.00020821,2]
[362477774,1748331047897,-430.0,0.00020821,2]
[362477775,1748331047909,-430.0,0.00020821,2]
[362477776,1748331047918,-793.0,0.00020821,2]
[362477777,1748331047927,-1419.32,0.00020821,2]
[362477778,1748331047936,-1132.35,0.00020821,2]
[362477779,1748331047946,-430.0,0.00020821,2]
[362477780,1748331047955,-492.38881099,0.00020821,2]
[362477781,1748331047964,-430.0,0.00020821,2]
[362477782,1748331047974,-430.0,0.00020821,2]
[362477783,1748331047983,-430.0,0.00020821,2]
[362477784,1748331047993,-593.45,0.00020821,2]
[362477785,1748331048002,-430.0,0.00020821,2]
[362477786,1748331048011,-430.0,0.00020821,2]
[362477787,1748331048022,-589.37,0.00020821,2]
[362477788,1748331048032,-430.0,0.00020821,2]
[362477789,1748331048042,-2337.04,0.00020821,2]
[362477790,1748331048051,-924.09,0.00020821,2]
[362477791,1748331048061,-430.0,0.00020821,2]
[362477792,1748331048070,-1597.61,0.00020821,2]
[362477793,1748331048080,-430.0,0.00020821,2]
[362477794,1748331048089,-510.0,0.00020821,2]
[362477795,1748331048099,-430.0,0.00020821,2]
[362477796,1748331048109,-430.0,0.00020821,2]
[362477797,1748331048118,-430.0,0.00020821,2]
[362477798,1748331048127,-451.68,0.00020821,2]
[362477799,1748331048136,-1000.49,0.00020821,2]
[362477800,1748331048145,-607.67,0.00020821,2]
[362477801,1748331048154,-430.0,0.00020821,2]
[362477802,1748331048163,-430.0,0.00020821,2]
[362477803,1748331048173,-2112.66,0.00020821,2]
[362477804,1748331048183,-2759.1,0.00020821,2]
[362477805,1748331048192,-430.0,0.00020821,2]
[362477806,1748331048202,-430.0,0.00020821,2]
[362477807,1748331048212,-430.0,0.00020821,2]
[362477808,1748331048222,-526.96,0.00020821,2]
[362477809,1748331048231,-430.0,0.00020821,2]
[362477810,1748331048241,-430.0,0.00020821,2]
[362477811,1748331048250,-430.0,0.00020821,2]
[362477812,1748331048260,-698.55,0.00020821,2]
[362477813,1748331048270,-430.0,0.00020821,2]
[362477814,1748331048283,-790.35,0.00020821,2]
[362477815,1748331048293,-561.02,0.00020821,2]
[362477816,1748331048303,-430.0,0.00020821,2]
[362477817,1748331048313,-644.94,0.00020821,2]
[362477818,1748331048324,-482.94,0.00020821,2]
[362477819,1748331048334,-745.06,0.00020821,2]
[362477820,1748331048344,-550.08686581,0.00020821,2]
[362477821,1748331048355,-517.65,0.00020821,2]
[362477822,1748331048364,-430.0,0.00020821,2]
[362477823,1748331048375,-430.0,0.00020821,2]
[362477824,1748331048384,-586.66,0.00020821,2]
[362477825,1748331048394,-1501.45,0.00020821,2]
[362477826,1748331048403,-430.0,0.00020821,2]
[362477827,1748331048413,-430.0,0.00020821,2]
[362477828,1748331048422,-991.4,0.00020821,2]
[362477829,1748331048432,-734.41,0.00020821,2]
[362477830,1748331048442,-430.0,0.00020821,2]
[362477831,1748331048451,-430.0,0.00020821,2]
[362477832,1748331048460,-430.0,0.00020821,2]
[362477833,1748331048470,-190.714,0.00021012,2]
[362477834,1748331048479,-500.0,0.00021063,2]
[362477835,1748331048488,-175.019,0.00021092,2]
[362477836,1748331048498,-430.0,0.00021095,2]
[362477837,1748331048508,-430.0,0.00021095,2]
[362477838,1748331048517,-430.0,0.00021095,2]
[362477839,1748331048526,-430.0,0.00021095,2]
[362477840,1748331048536,-430.0,0.00021095,2]
[362477841,1748331048545,-475.69,0.00021095,2]
[362477842,1748331048555,-430.0,0.00021095,2]
[362477843,1748331048565,-592.3,0.00021095,2]
[362477844,1748331048575,-430.0,0.00021095,2]
[362477845,1748331048584,-430.0,0.00021095,2]
[362477846,1748331048593,-430.0,0.00021095,2]
[362477847,1748331048603,-470.0,0.00021095,2]
[362477848,1748331048612,-552.52,0.00021095,2]
[362477849,1748331048621,-336.56718857,0.00021095,2]
[362477850,1748331048631,-430.0,0.00021095,2]
[362477851,1748331048640,-430.0,0.00021095,2]
[362477852,1748331048649,-483.75,0.00021095,2]
[362477853,1748331048658,-515.63,0.00021095,2]
[362477854,1748331048667,-430.0,0.00021095,2]
[362477855,1748331048676,-430.0,0.00021095,2]
[362477856,1748331048685,-430.0,0.00021095,2]
[362477857,1748331048694,-439.69257944,0.00021095,2]
[362477858,1748331048703,-475.52,0.00021095,2]
[362477859,1748331048713,-430.0,0.00021095,2]
[362477860,1748331048722,-430.0,0.00021095,2]
[362477861,1748331048732,-430.0,0.00021095,2]
[362477862,1748331048742,-430.0,0.00021095,2]
[362477863,1748331048751,-793.0,0.00021095,2]
[362477864,1748331048760,-1419.32,0.00021095,2]
[362477865,1748331048771,-1132.35,0.00021095,2]
[362477866,1748331048780,-430.0,0.00021095,2]
[362477867,1748331048789,-430.0,0.00021095,2]
[362477868,1748331048798,-430.0,0.00021095,2]
[362477869,1748331048808,-155.46,0.00021095,2]
[362477870,1748331048818,-593.45,0.00021095,2]
[362477871,1748331048827,-430.0,0.00021095,2]
[362477872,1748331048836,-430.0,0.00021095,2]
[362477873,1748331048846,-589.37,0.00021095,2]
[362477874,1748331048856,-430.0,0.00021095,2]
[362477875,1748331048865,-2337.04,0.00021095,2]
[362477876,1748331048875,-924.09,0.00021095,2]
[362477877,1748331048884,-430.0,0.00021095,2]
[362477878,1748331048895,-1597.61,0.00021095,2]
[362477879,1748331048907,-430.0,0.00021095,2]
[362477880,1748331048917,-430.0,0.00021095,2]
[362477881,1748331048927,-430.0,0.00021095,2]
[362477882,1748331048937,-430.0,0.00021095,2]
[362477883,1748331048947,-451.68,0.00021095,2]
[362477884,1748331048957,-1000.49,0.00021095,2]
[362477885,1748331048966,-607.67,0.00021095,2]
[362477886,1748331048978,-430.0,0.00021095,2]
[362477887,1748331048987,-430.0,0.00021095,2]
[362477888,1748331048997,-2112.66,0.00021095,2]
[362477889,1748331049007,-2759.1,0.00021095,2]
[362477890,1748331049016,-430.0,0.00021095,2]
[362477891,1748331049025,-440.0,0.00021095,2]
[362477892,1748331049035,-526.96,0.00021095,2]
[362477893,1748331049045,-430.0,0.00021095,2]
[362477894,1748331049054,-430.0,0.00021095,2]
[362477895,1748331049064,-698.55,0.00021095,2]
[362477896,1748331049073,-430.0,0.00021095,2]
[362477897,1748331049082,-790.35,0.00021095,2]
[362477898,1748331049092,-561.02,0.00021095,2]
[362477899,1748331049101,-430.0,0.00021095,2]
[362477900,1748331049111,-644.94,0.00021095,2]
[362477901,1748331049121,-482.94,0.00021095,2]
[362477902,1748331049131,-745.06,0.00021095,2]
[362477903,1748331049140,-517.65,0.00021095,2]
[362477904,1748331049149,-430.0,0.00021095,2]
[362477905,1748331049158,-430.0,0.00021095,2]
[362477906,1748331049167,-586.66,0.00021095,2]
[362477907,1748331049177,-1501.45,0.00021095,2]
[362477908,1748331049186,-430.0,0.00021095,2]
[362477909,1748331049195,-386.01812521,0.00021095,2]
[362477910,1748331049205,-991.4,0.00021095,2]
[362477911,1748331049214,-734.41,0.00021095,2]
[362477912,1748331049224,-430.0,0.00021095,2]
[362477913,1748331049234,-430.0,0.00021095,2]